{"text_format":"1","workbook":"xlsx","n_sheets":2,"sheets":["Берізка","М.М. Городецького"],"not_rendered":{"charts":0,"images":0,"macros":1,"external_links":0,"defined_names":2,"comments":0,"pivot_tables":0},"unopened":[],"bounds":{"document_bytes":16777216,"sheet_cells":100000,"rows_first":2000,"rows_last":500,"rows_between":2000,"halvings":0,"cell_chars":16384,"cell_head_chars":4096},"cells_cut":0,"cells_raw":0,"read":"whole","date_system":"1900"}

{"sheet":"Берізка","index":0,"n_rows":15,"n_cols":13,"rows_kept":15,"cut":false,"hidden":false,"merged":[[11,6,11,7],[13,6,13,7],[2,1,2,9],[3,0,3,10],[4,0,5,0],[4,1,5,1],[4,2,4,4],[4,5,5,5],[4,6,4,9],[4,10,5,10]]}
[null,null,null,null,null,null,null,null,null,null,null,null,"          Додаток до листа"]
[null,null,null,null,null,null,null,null,null,null,null,null,"             від ________ 2018 № ______"]
[null,"ІНФОРМАЦІЯ                                                                                                                                                                                                                                                                                                                                                                                                                    про надходження і використання благодійних пожертв від фізичних та юридичних осіб                                                                                                                                                     ___Київський міський будинок дитини \"Берізка\"___за__І__квартал__2018___року "]
["                                                                                                                                            найменування закладу охорони здоров′я"]
["№ пп","Найменування юридичної особи (або позначення фізичної особи)","Благодійні пожертви, що були отримані закладом охорони здоров'я від фізичних та юридичних осіб",null,null,"Всього отримано благодійних пожертв, тис. грн","Використання закладом охорони здоров'я благодійних пожертв, отриманих у грошовій (товари і послуг) формі",null,null,null,"Залишок невикористаних грошових коштів, товарів та послуг на кінець звітного періоду,            тис. грн"]
[null,null,"В грошовій форм, тис. грн","В  натуральній формі (товари і послуги),    тис. грн","Перелік товарів і послуг в натуральній формі (канцтовари, господарські товари, будівельні товари, медикаменти та перев'язувальні матеріали, продукти харчування, м\"який інвентар, основні засоби та інші)",null,"Напрямки використання у грошовій формі (стаття витрат)","Сума,          тис. грн","Перелік використаних товарів та послуг у натуральній формі  (канцтовари, господарські товари, будівельні товари, медикаменти та перев'язувальні матеріали, продукти харчування, м\"який інвентар, основні засоби та інші)","Сума,          тис. грн"]
[1,"Фізична особа",7.07,null,null,{"$f":"SUM(C7,D7)","v":7.07},2250,1.7]
[null,null,null,null,null,{"$f":"SUM(C8,D8)","v":0},null,null,null,null,{"$f":"F8-J8","v":0}]
[null,"ВСЬОГО по закладу",{"$f":"SUM(C7:C8)","v":7.07},{"$f":"SUM(D7:D8)","v":0},null,{"$f":"SUM(C9,D9)","v":7.07},null,{"$f":"SUM(H7:H8)","v":1.7},null,{"$f":"SUM(J7:J8)","v":0},{"$f":"F9-H9-J9","v":5.37}]
[]
[]
[null,"Головний лікар",null,null,null,null,"Могильний О.І."]
[null,null,null,null,null,"(підпис)           (ініціали і прізвище) "]
[null,"Головний бухгалтер",null,null,null,null,"Вороніна І.В."]
[null,null,null,null,null,"(підпис)           (ініціали і прізвище) "]

{"sheet":"М.М. Городецького","index":1,"n_rows":56,"n_cols":13,"rows_kept":56,"cut":false,"hidden":false,"merged":[[52,6,52,7],[54,6,54,7],[2,1,2,9],[3,0,3,10],[4,0,5,0],[4,1,5,1],[4,2,4,4],[4,5,5,5],[4,6,4,9],[4,10,5,10]]}
[null,null,null,null,null,null,null,null,null,null,null,null,"          Додаток до листа"]
[null,null,null,null,null,null,null,null,null,null,null,null,"             від ________ 2018 № ______"]
[null,"ІНФОРМАЦІЯ                                                                                                                                                                                                                                                                                                                                                                                                                    про надходження і використання благодійних пожертв від фізичних та юридичних осіб                                                                                                                                                     Київський міський будинок дитини ім. М.М. Городецького за І квартал 2018року "]
["                                                                                                                                            найменування закладу охорони здоров′я"]
["№ пп","Найменування юридичної особи (або позначення фізичної особи)","Благодійні пожертви, що були отримані закладом охорони здоров'я від фізичних та юридичних осіб",null,null,"Всього отримано благодійних пожертв, тис. грн","Використання закладом охорони здоров'я благодійних пожертв, отриманих у грошовій (товари і послуг) формі",null,null,null,"Залишок невикористаних грошових коштів, товарів та послуг на кінець звітного періоду,            тис. грн"]
[null,null,"В грошовій форм, тис. грн","В  натуральній формі (товари і послуги),    тис. грн","Перелік товарів і послуг в натуральній формі (канцтовари, господарські товари, будівельні товари, медикаменти та перев'язувальні матеріали, продукти харчування, м\"який інвентар, основні засоби та інші)",null,"Напрямки використання у грошовій формі (стаття витрат)","Сума,          тис. грн","Перелік використаних товарів та послуг у натуральній формі  (канцтовари, господарські товари, будівельні товари, медикаменти та перев'язувальні матеріали, продукти харчування, м\"який інвентар, основні засоби та інші)","Сума,          тис. грн"]
[null,"КО \"Спілка Самаритян\"",null,125.914,"прод. харчування",{"$f":"SUM(C7,D7)","v":125.914},2230,null,null,126.756,1.5469999999999999]
[null,"Приватна особа",null,40.360999999999997,"прод. харчування",{"$f":"SUM(C8,D8)","v":40.360999999999997},2230,null,null,40.360999999999997,0]
[null,"ТОВ \"Деліція\"",null,0.92200000000000004,"прод. харчування",0.92200000000000004,2230,null,null,0.92200000000000004,0]
[null,"ТОВ \"Рубеж\"",null,0.75800000000000001,"прод. харчування",0.75800000000000001,2230,null,null,0.75800000000000001,0]
[null,"Приватна особа",null,46.210999999999999,"іграшки",46.210999999999999]
[null,"ТОВ \"Натане-Фарм\"",null,27.132000000000001,"медикаменти",27.132000000000001]
[null,"ВіДіАвтосітіКільцева",null,105.51300000000001,"канц.товари",105.51300000000001]
[null,"Компанія \"Агроскоп\"",null,72.182000000000002,"госп.матеріали",72.182000000000002]
[null,"ТОВ \"Парі\"",null,45.433999999999997,"меблі",45.433999999999997]
[null,"Приватна особа",null,68.135000000000005,"миючі засоби",68.135000000000005]
[null,null,null,105.61499999999999,"засоби гігієни",105.61499999999999]
[null,null,null,40.51,"мякий інвентар",40.51]
[null,"ТОВ \"Еско-Північ\"",null,389.96199999999999,"основні засоби",389.96199999999999]
[null,"Приватна особа",110.45099999999999,null,null,110.45099999999999]
[null,null,null,null,null,0,null,null,null,null,110.45]
[null,null,null,null,null,0]
[null,null,null,null,null,0]
[null,null,null,null,null,0]
[null,null,null,null,null,0]
[null,null,null,null,null,0]
[null,null,null,null,null,0]
[null,null,null,null,null,0]
[null,null,null,null,null,0]
[null,null,null,null,null,0]
[null,null,null,null,null,0]
[null,null,null,null,null,0]
[null,null,null,null,null,0]
[null,null,null,null,null,0]
[null,null,null,null,null,0]
[null,null,null,null,null,0]
[null,null,null,null,null,0]
[null,null,null,null,null,0]
[null,null,null,null,null,0]
[null,null,null,null,null,0]
[null,null,null,null,null,0]
[null,null,null,null,null,0]
[null,null,null,null,null,0]
[null,null,null,null,null,0]
[null,null,null,null,null,0]
[null,null,null,null,null,0]
[null,null,null,null,null,0]
[null,null,null,null,null,0]
[null,null,null,null,null,0]
[null,"ВСЬОГО по закладу",{"$f":"SUM(C7:C49)","v":110.45099999999999},{"$f":"SUM(D7:D49)","v":1068.6489999999999},null,1179.0999999999999,null,{"$f":"SUM(H7:H49)","v":0},null,{"$f":"SUM(J7:J49)","v":168.797},{"$f":"C50-H50","v":110.45099999999999}]
[]
[]
[null,"Керівник установи"]
[null,null,null,null,null,"(підпис)           (ініціали і прізвище) "]
[null,"Головний бухгалтер"]
[null,null,null,null,null,"(підпис)           (ініціали і прізвище) "]